[Event "FIDE Grand Swiss 2023"]
[Site "Villa Marina, Douglas, Isle of Man, Isle Of Man"]
[Date "2023.10.26"]
[Round "2.34"]
[White "Mareco, Sandro"]
[Black "Shevchenko, Kirill"]
[Result "1/2-1/2"]
[TimeControl "40/90 + 30 + 30s/move"]
[WhiteFideId "112275"]
[BlackFideId "14129574"]
[WhiteElo "2606"]
[BlackElo "2671"]

1. d4 {[%clk 01:40:55]} {[%emt 00:00:04]} Nf6 {[%clk 01:40:01]} {[%emt
00:01:00]} 2. Nf3 {[%clk 01:41:17]} {[%emt 00:00:07]} g6 {[%clk 01:39:33]}
{[%emt 00:00:58]} 3. Bg5 {[%clk 01:41:41]} {[%emt 00:00:06]} Bg7 {[%clk
01:39:35]} {[%emt 00:00:29]} 4. e3 {[%clk 01:42:05]} {[%emt 00:00:05]} d6
{[%clk 01:30:59]} {[%emt 00:09:06]} 5. Be2 {[%clk 01:42:22]} {[%emt 00:00:13]}
c5 {[%clk 01:29:49]} {[%emt 00:01:41]} 6. O-O {[%clk 01:42:34]} {[%emt
00:00:18]} O-O {[%clk 01:29:22]} {[%emt 00:00:57]} 7. c3 {[%clk 01:42:53]}
{[%emt 00:00:11]} Qb6 {[%clk 01:25:29]} {[%emt 00:04:23]} 8. Nbd2 {[%clk
01:42:35]} {[%emt 00:00:47]} Bf5 {[%clk 01:15:53]} {[%emt 00:10:07]} 9. Nc4
{[%clk 01:21:30]} {[%emt 00:21:35]} Qc7 {[%clk 01:13:57]} {[%emt 00:02:26]} 10.
h3 {[%clk 01:17:29]} {[%emt 00:04:30]} Nbd7 {[%clk 01:04:49]} {[%emt 00:09:36]}
11. Re1 {[%clk 01:15:14]} {[%emt 00:02:47]} h6 {[%clk 01:01:21]} {[%emt
00:03:59]} 12. Bf4 {[%clk 01:14:13]} {[%emt 00:01:31]} Nb6 {[%clk 00:44:11]}
{[%emt 00:17:39]} 13. Nfd2 {[%clk 00:53:59]} {[%emt 00:20:45]} Nxc4 {[%clk
00:36:29]} {[%emt 00:08:12]} 14. Bxc4 {[%clk 00:52:24]} {[%emt 00:02:05]} Ne4
{[%clk 00:26:58]} {[%emt 00:10:01]} 15. Bd5 {[%clk 00:50:08]} {[%emt 00:02:46]}
Nf6 {[%clk 00:26:55]} {[%emt 00:00:32]} 16. Bb3 {[%clk 00:49:07]} {[%emt
00:01:31]} e5 {[%clk 00:24:32]} {[%emt 00:02:53]} 17. Bh2 {[%clk 00:49:20]}
{[%emt 00:00:18]} Rad8 {[%clk 00:15:59]} {[%emt 00:09:03]} 18. e4 {[%clk
00:44:35]} {[%emt 00:05:15]} Bc8 {[%clk 00:16:23]} {[%emt 00:00:05]} 19. Nf3
{[%clk 00:42:34]} {[%emt 00:02:32]} c4 {[%clk 00:14:45]} {[%emt 00:02:08]} 20.
Bc2 {[%clk 00:41:51]} {[%emt 00:01:12]} Rfe8 {[%clk 00:14:16]} {[%emt
00:00:59]} 21. a4 {[%clk 00:31:29]} {[%emt 00:10:52]} b6 {[%clk 00:14:30]}
{[%emt 00:00:16]} 22. Qd2 {[%clk 00:30:46]} {[%emt 00:01:13]} a6 {[%clk
00:13:35]} {[%emt 00:01:25]} 23. Kh1 {[%clk 00:27:22]} {[%emt 00:03:55]} Bb7
{[%clk 00:12:12]} {[%emt 00:01:53]} 24. d5 {[%clk 00:27:25]} {[%emt 00:00:27]}
b5 {[%clk 00:11:35]} {[%emt 00:01:07]} 25. Ng1 {[%clk 00:27:42]} {[%emt
00:00:13]} Re7 {[%clk 00:06:53]} {[%emt 00:05:12]} 26. Ne2 {[%clk 00:28:07]}
{[%emt 00:00:04]} h5 {[%clk 00:06:06]} {[%emt 00:01:18]} 27. Bg3 {[%clk
00:26:09]} {[%emt 00:02:28]} Ree8 {[%clk 00:03:31]} {[%emt 00:03:05]} 28. Bh4
{[%clk 00:23:02]} {[%emt 00:03:36]} Rc8 {[%clk 00:03:24]} {[%emt 00:00:38]} 29.
f4 {[%clk 00:19:03]} {[%emt 00:04:29]} exf4 {[%clk 00:03:36]} {[%emt 00:00:17]}
30. Qxf4 {[%clk 00:19:24]} {[%emt 00:00:08]} Nd7 {[%clk 00:03:59]} {[%emt
00:00:08]} 31. axb5 {[%clk 00:19:04]} {[%emt 00:00:51]} axb5 {[%clk 00:04:21]}
{[%emt 00:00:08]} 32. Nd4 {[%clk 00:19:07]} {[%emt 00:00:27]} Be5 {[%clk
00:01:15]} {[%emt 00:03:35]} 33. Qf3 {[%clk 00:19:04]} {[%emt 00:00:33]} b4
{[%clk 00:01:00]} {[%emt 00:00:46]} 34. Ba4 {[%clk 00:19:07]} {[%emt 00:00:27]}
Rf8 {[%clk 00:00:33]} {[%emt 00:00:57]} 35. Be7 {[%clk 00:16:44]} {[%emt
00:02:53]} Rfe8 {[%clk 00:00:36]} {[%emt 00:00:26]} 36. Bg5 {[%clk 00:17:09]}
{[%emt 00:00:05]} Rf8 {[%clk 00:00:38]} {[%emt 00:00:29]} 37. Bh6 {[%clk
00:16:30]} {[%emt 00:01:09]} Rfd8 {[%clk 00:00:33]} {[%emt 00:00:35]} 38. Bg5
{[%clk 00:03:55]} {[%emt 00:13:04]} Rf8 {[%clk 00:00:58]} {[%emt 00:00:05]} 39.
Bh6 {[%clk 00:03:08]} {[%emt 00:01:18]} Rfd8 {[%clk 00:01:05]} {[%emt
00:00:22]} 40. Nb5 {[%clk 00:02:35]} {[%emt 00:01:03]} Qb8 {[%clk 00:01:07]}
{[%emt 00:00:28]} 41. Rf1 {[%clk 00:02:29]} {[%emt 00:00:36]} f6 {[%clk
00:48:25]} {[%emt 00:03:12]} 42. Bf4 {[%clk 00:43:37]} {[%emt 00:09:22]} Rf8
{[%clk 00:36:57]} {[%emt 00:11:58]} 43. cxb4 {[%clk 00:42:03]} {[%emt
00:02:04]} Rf7 {[%clk 00:31:46]} {[%emt 00:05:41]} 44. Qg3 {[%clk 00:40:10]}
{[%emt 00:02:24]} Kh7 {[%clk 00:28:25]} {[%emt 00:03:51]} 45. Nd4 {[%clk
00:34:31]} {[%emt 00:06:08]} Bxf4 {[%clk 00:27:26]} {[%emt 00:01:30]} 46. Rxf4
{[%clk 00:34:38]} {[%emt 00:00:23]} Ne5 {[%clk 00:21:50]} {[%emt 00:06:06]} 47.
Raf1 {[%clk 00:34:32]} {[%emt 00:00:35]} Qa7 {[%clk 00:21:42]} {[%emt
00:00:38]} 48. Ne6 {[%clk 00:29:30]} {[%emt 00:05:32]} Bxd5 {[%clk 00:14:46]}
{[%emt 00:07:26]} 49. exd5 {[%clk 00:28:51]} {[%emt 00:01:09]} Qxa4 {[%clk
00:15:13]} {[%emt 00:00:03]} 50. Rxf6 {[%clk 00:26:27]} {[%emt 00:02:55]} Rxf6
{[%clk 00:15:33]} {[%emt 00:00:10]} 51. Rxf6 {[%clk 00:26:52]} {[%emt
00:00:04]} Qd1+ {[%clk 00:11:34]} {[%emt 00:04:29]} 52. Kh2 {[%clk 00:26:11]}
{[%emt 00:01:11]} Qxd5 {[%clk 00:11:54]} {[%emt 00:00:10]} 53. Qf4 {[%clk
00:22:16]} {[%emt 00:04:25]} Rg8 {[%clk 00:12:08]} {[%emt 00:00:16]} 54. b5
{[%clk 00:09:10]} {[%emt 00:13:37]} Qxb5 {[%clk 00:10:18]} {[%emt 00:02:19]} 55.
Ng5+ {[%clk 00:08:47]} {[%emt 00:00:53]} Kg7 {[%clk 00:09:42]} {[%emt
00:01:06]} 56. Ne6+ {[%clk 00:06:24]} {[%emt 00:02:53]} Kh7 {[%clk 00:10:11]}
57. Ng5+ {[%clk 00:04:55]} {[%emt 00:01:59]} Kg7 {[%clk 00:10:40]} {[%emt
00:00:02]} 58. Rxd6 {[%clk 00:05:19]} {[%emt 00:00:06]} Nd3 {[%clk 00:09:14]}
{[%emt 00:01:56]} 59. Qf6+ {[%clk 00:05:20]} {[%emt 00:00:28]} Kh6 {[%clk
00:09:39]} {[%emt 00:00:04]} 60. Nf7+ {[%clk 00:05:29]} {[%emt 00:00:22]} Kh7
{[%clk 00:10:08]} {[%emt 00:00:01]} 61. Rb6 {[%clk 00:02:05]} {[%emt 00:03:54]}
Qd5 {[%clk 00:06:44]} {[%emt 00:03:54]} 62. Kh1 {[%clk 00:01:56]} {[%emt
00:00:39]} Ne1 {[%clk 00:02:29]} {[%emt 00:04:45]} 63. Ng5+ {[%clk 00:00:48]}
{[%emt 00:01:38]} Kh6 {[%clk 00:02:58]} {[%emt 00:00:01]} 64. Nf7+ {[%clk
00:00:36]} {[%emt 00:00:42]} Kh7 {[%clk 00:03:27]} {[%emt 00:00:02]} 65. Ng5+
{[%clk 00:15:00]} 1/2-1/2

[Event "FIDE Grand Swiss 2023"]
[Site "Villa Marina, Douglas, Isle of Man, Isle Of Man"]
[Date "2023.10.26"]
[Round "2.36"]
[White "Wojtaszek, Radoslaw"]
[Black "Kozak, Adam"]
[Result "1/2-1/2"]
[TimeControl "40/90 + 30 + 30s/move"]
[WhiteFideId "1118358"]
[BlackFideId "753246"]
[WhiteElo "2668"]
[BlackElo "2566"]

1. d4 {[%clk 01:40:56]} {[%emt 00:00:03]} Nf6 {[%clk 01:40:51]} {[%emt
00:00:11]} 2. c4 {[%clk 01:41:19]} {[%emt 00:00:06]} e6 {[%clk 01:41:08]}
{[%emt 00:00:13]} 3. Nf3 {[%clk 01:41:40]} {[%emt 00:00:08]} d5 {[%clk
01:41:32]} {[%emt 00:00:07]} 4. g3 {[%clk 01:41:57]} {[%emt 00:00:13]} Bb4+
{[%clk 01:41:54]} {[%emt 00:00:08]} 5. Bd2 {[%clk 01:42:17]} {[%emt 00:00:08]}
Be7 {[%clk 01:42:17]} {[%emt 00:00:08]} 6. Bg2 {[%clk 01:42:00]} {[%emt
00:00:47]} Nbd7 {[%clk 01:42:26]} {[%emt 00:00:22]} 7. O-O {[%clk 01:41:27]}
{[%emt 00:01:02]} O-O {[%clk 01:42:47]} {[%emt 00:00:10]} 8. c5 {[%clk
01:41:30]} {[%emt 00:00:27]} Ne4 {[%clk 01:35:13]} {[%emt 00:08:04]} 9. Nc3
{[%clk 01:41:23]} {[%emt 00:00:37]} c6 {[%clk 01:22:22]} {[%emt 00:13:22]} 10.
Nxe4 {[%clk 01:39:04]} {[%emt 00:02:48]} dxe4 {[%clk 01:22:33]} {[%emt
00:00:19]} 11. Ne5 {[%clk 01:39:30]} {[%emt 00:00:03]} f5 {[%clk 01:22:53]}
{[%emt 00:00:11]} 12. Nxd7 {[%clk 01:29:30]} {[%emt 00:10:30]} Qxd7 {[%clk
01:22:35]} {[%emt 00:00:49]} 13. Bf4 {[%clk 01:29:51]} {[%emt 00:00:07]} b6
{[%clk 01:10:45]} {[%emt 00:12:22]} 14. Qa4 {[%clk 01:17:43]} {[%emt 00:12:37]}
bxc5 {[%clk 01:01:32]} {[%emt 00:09:43]} 15. dxc5 {[%clk 01:18:03]} {[%emt
00:00:10]} Bxc5 {[%clk 01:01:56]} {[%emt 00:00:06]} 16. Rac1 {[%clk 01:14:46]}
{[%emt 00:03:47]} Bb6 {[%clk 00:52:49]} {[%emt 00:09:37]} 17. Rfd1 {[%clk
01:14:19]} {[%emt 00:00:56]} Qe8 {[%clk 00:48:41]} {[%emt 00:04:39]} 18. Be5
{[%clk 00:49:15]} {[%emt 00:25:34]} Bb7 {[%clk 00:32:26]} {[%emt 00:16:46]} 19.
e3 {[%clk 00:48:07]} {[%emt 00:01:37]} Rd8 {[%clk 00:29:26]} {[%emt 00:03:30]}
20. Rxd8 {[%clk 00:47:24]} {[%emt 00:01:13]} Qxd8 {[%clk 00:29:50]} {[%emt
00:00:06]} 21. Rd1 {[%clk 00:47:50]} {[%emt 00:00:03]} Qc8 {[%clk 00:26:07]}
{[%emt 00:04:15]} 22. Bf1 {[%clk 00:45:01]} {[%emt 00:03:17]} Rd8 {[%clk
00:23:55]} {[%emt 00:02:43]} 23. Bc4 {[%clk 00:44:26]} {[%emt 00:01:05]} Kf7
{[%clk 00:19:40]} {[%emt 00:04:45]} 24. Qb3 {[%clk 00:40:48]} {[%emt 00:04:07]}
Ba6 {[%clk 00:14:25]} {[%emt 00:05:46]} 25. Bxa6 {[%clk 00:29:56]} {[%emt
00:11:22]} Qxa6 {[%clk 00:14:43]} {[%emt 00:00:12]} 26. Rxd8 {[%clk 00:30:24]}
{[%emt 00:00:03]} Bxd8 {[%clk 00:15:04]} {[%emt 00:00:09]} 27. Qd1 {[%clk
00:30:51]} {[%emt 00:00:02]} Qd3 {[%clk 00:14:25]} {[%emt 00:01:09]} 28. Qh5+
{[%clk 00:31:14]} {[%emt 00:00:06]} Kf8 {[%clk 00:14:47]} {[%emt 00:00:09]} 29.
Qxh7 {[%clk 00:24:19]} {[%emt 00:07:25]} Qd1+ {[%clk 00:15:09]} {[%emt
00:00:08]} 30. Kg2 {[%clk 00:24:46]} {[%emt 00:00:02]} Qf3+ {[%clk 00:15:34]}
{[%emt 00:00:06]} 1/2-1/2

[Event "FIDE Grand Swiss 2023"]
[Site "Villa Marina, Douglas, Isle of Man, Isle Of Man"]
[Date "2023.10.26"]
[Round "2.37"]
[White "Volokitin, Andrei"]
[Black "Fier, Alexandr"]
[Result "1-0"]
[TimeControl "40/90 + 30 + 30s/move"]
[WhiteFideId "14107090"]
[BlackFideId "2107139"]
[WhiteElo "2664"]
[BlackElo "2574"]

1. e4 {[%clk 01:40:58]} {[%emt 00:00:01]} c5 {[%clk 01:40:56]} {[%emt
00:00:04]} 2. Nf3 {[%clk 01:41:23]} {[%emt 00:00:05]} d6 {[%clk 01:41:23]}
{[%emt 00:00:03]} 3. Nc3 {[%clk 01:41:48]} {[%emt 00:00:05]} Nc6 {[%clk
01:41:49]} {[%emt 00:00:04]} 4. d4 {[%clk 01:42:04]} {[%emt 00:00:14]} cxd4
{[%clk 01:42:15]} {[%emt 00:00:05]} 5. Nxd4 {[%clk 01:42:31]} {[%emt 00:00:03]}
Nf6 {[%clk 01:42:38]} {[%emt 00:00:06]} 6. Bg5 {[%clk 01:42:51]} {[%emt
00:00:10]} e6 {[%clk 01:43:04]} {[%emt 00:00:05]} 7. Qd3 {[%clk 01:41:43]}
{[%emt 00:01:37]} Bd7 {[%clk 01:43:27]} {[%emt 00:00:07]} 8. O-O-O {[%clk
01:41:50]} {[%emt 00:00:22]} a6 {[%clk 01:43:52]} {[%emt 00:00:07]} 9. f4
{[%clk 01:42:13]} {[%emt 00:00:06]} Be7 {[%clk 01:44:17]} {[%emt 00:00:05]} 10.
Nf3 {[%clk 01:42:36]} {[%emt 00:00:07]} Qa5 {[%clk 01:44:31]} {[%emt 00:00:16]}
11. Kb1 {[%clk 01:42:44]} {[%emt 00:00:22]} Rc8 {[%clk 01:44:56]} {[%emt
00:00:05]} 12. Bxf6 {[%clk 01:40:46]} {[%emt 00:02:28]} gxf6 {[%clk 01:45:19]}
{[%emt 00:00:06]} 13. Qe3 {[%clk 01:40:54]} {[%emt 00:00:23]} Qc5 {[%clk
01:45:45]} {[%emt 00:00:05]} 14. Qe1 {[%clk 01:37:31]} {[%emt 00:03:52]} b5
{[%clk 01:39:50]} {[%emt 00:06:26]} 15. Bd3 {[%clk 01:36:41]} {[%emt 00:01:19]}
Nb4 {[%clk 01:37:23]} {[%emt 00:02:57]} 16. Rc1 {[%clk 00:34:36]} {[%emt
01:02:35]} Qb6 {[%clk 01:24:28]} {[%emt 00:13:26]} 17. Nd5 {[%clk 00:25:05]}
{[%emt 00:10:00]} Nxd3 {[%clk 01:24:47]} {[%emt 00:00:12]} 18. Nxb6 {[%clk
00:25:29]} {[%emt 00:00:06]} Nxe1 {[%clk 01:25:14]} {[%emt 00:00:02]} 19. Rhxe1
{[%clk 00:25:52]} {[%emt 00:00:07]} Rc5 {[%clk 01:25:23]} {[%emt 00:00:21]} 20.
Nxd7 {[%clk 00:20:20]} {[%emt 00:06:02]} Kxd7 {[%clk 01:25:49]} {[%emt
00:00:04]} 21. Rcd1 {[%clk 00:20:36]} {[%emt 00:00:14]} Rg8 {[%clk 01:18:46]}
{[%emt 00:07:33]} 22. Re2 {[%clk 00:19:10]} {[%emt 00:01:55]} h5 {[%clk
01:18:22]} {[%emt 00:00:55]} 23. c3 {[%clk 00:17:00]} {[%emt 00:02:40]} Rg4
{[%clk 01:12:52]} {[%emt 00:05:59]} 24. g3 {[%clk 00:16:33]} {[%emt 00:00:58]}
Kc7 {[%clk 01:13:17]} {[%emt 00:00:05]} 25. Kc2 {[%clk 00:15:06]} {[%emt
00:01:57]} Kb6 {[%clk 01:03:33]} {[%emt 00:10:15]} 26. b4 {[%clk 00:08:57]}
{[%emt 00:06:39]} Rc7 {[%clk 01:00:45]} {[%emt 00:03:18]} 27. Kb3 {[%clk
00:08:58]} {[%emt 00:00:28]} Rg8 {[%clk 01:00:06]} {[%emt 00:01:09]} 28. Rd3
{[%clk 00:07:36]} {[%emt 00:01:52]} a5 {[%clk 00:59:59]} {[%emt 00:00:38]} 29.
bxa5+ {[%clk 00:06:13]} {[%emt 00:01:53]} Kxa5 {[%clk 01:00:25]} {[%emt
00:00:04]} 30. f5 {[%clk 00:06:36]} {[%emt 00:00:07]} Re8 {[%clk 00:47:48]}
{[%emt 00:13:06]} 31. Nd4 {[%clk 00:06:53]} {[%emt 00:00:13]} Bd8 {[%clk
00:45:51]} {[%emt 00:02:27]} 32. Red2 {[%clk 00:06:33]} {[%emt 00:00:49]} Rc4
{[%clk 00:44:47]} {[%emt 00:01:35]} 33. fxe6 {[%clk 00:05:51]} {[%emt
00:01:13]} fxe6 {[%clk 00:45:13]} {[%emt 00:00:04]} 34. a4 {[%clk 00:06:18]}
{[%emt 00:00:02]} Rxa4 {[%clk 00:24:33]} {[%emt 00:21:10]} 35. Nc6+ {[%clk
00:06:44]} {[%emt 00:00:04]} Kb6 {[%clk 00:25:01]} {[%emt 00:00:03]} 36. Nxd8
{[%clk 00:07:07]} {[%emt 00:00:06]} Rxd8 {[%clk 00:25:28]} {[%emt 00:00:03]} 37.
Rxd6+ {[%clk 00:07:32]} {[%emt 00:00:05]} Rxd6 {[%clk 00:25:56]} {[%emt
00:00:02]} 38. Rxd6+ {[%clk 00:08:01]} {[%emt 00:00:01]} Kc7 {[%clk 00:26:21]}
{[%emt 00:00:06]} 39. Rxe6 {[%clk 00:08:27]} {[%emt 00:00:04]} Kd7 {[%clk
00:26:49]} {[%emt 00:00:02]} 40. Rxf6 {[%clk 00:08:50]} {[%emt 00:00:06]} Rxe4
{[%clk 00:27:17]} {[%emt 00:00:02]} 41. Rf5 {[%clk 00:06:37]} {[%emt 00:02:44]}
h4 {[%clk 00:27:43]} {[%emt 00:00:04]} 42. Rf4 {[%clk 00:06:46]} {[%emt
00:00:20]} Rxf4 {[%clk 00:23:15]} {[%emt 00:04:58]} 43. gxf4 {[%clk 00:05:52]}
{[%emt 00:01:24]} Ke6 {[%clk 00:23:42]} {[%emt 00:00:04]} 44. Kb4 {[%clk
00:06:15]} {[%emt 00:00:06]} Kf5 {[%clk 00:24:09]} {[%emt 00:00:03]} 45. Kxb5
{[%clk 00:06:41]} {[%emt 00:00:05]} Kxf4 {[%clk 00:24:37]} {[%emt 00:00:02]} 46.
c4 {[%clk 00:07:06]} {[%emt 00:00:05]} 1-0

[Event "FIDE Grand Swiss 2023"]
[Site "Villa Marina, Douglas, Isle of Man, Isle Of Man"]
[Date "2023.10.26"]
[Round "2.38"]
[White "Korobov, Anton"]
[Black "Gurel, Ediz"]
[Result "1-0"]
[TimeControl "40/90 + 30 + 30s/move"]
[WhiteFideId "14105730"]
[BlackFideId "44507356"]
[WhiteElo "2658"]
[BlackElo "2514"]

1. d4 {[%clk 01:40:57]} {[%emt 00:00:01]} d5 {[%clk 01:40:48]} {[%emt
00:00:13]} 2. c4 {[%clk 01:41:21]} {[%emt 00:00:06]} e6 {[%clk 01:41:02]}
{[%emt 00:00:16]} 3. Nf3 {[%clk 01:41:28]} {[%emt 00:00:22]} Nf6 {[%clk
01:41:10]} {[%emt 00:00:23]} 4. Nc3 {[%clk 01:41:41]} {[%emt 00:00:17]} c6
{[%clk 01:41:18]} {[%emt 00:00:23]} 5. e3 {[%clk 01:41:47]} {[%emt 00:00:23]}
Be7 {[%clk 01:41:25]} {[%emt 00:00:23]} 6. Bd3 {[%clk 01:39:12]} {[%emt
00:03:05]} dxc4 {[%clk 01:41:38]} {[%emt 00:00:18]} 7. Bxc4 {[%clk 01:39:37]}
{[%emt 00:00:04]} b5 {[%clk 01:41:44]} {[%emt 00:00:25]} 8. Bd3 {[%clk
01:39:13]} {[%emt 00:00:53]} b4 {[%clk 01:32:57]} {[%emt 00:09:17]} 9. Ne4
{[%clk 01:37:31]} {[%emt 00:02:11]} Nbd7 {[%clk 01:30:35]} {[%emt 00:02:53]} 10.
O-O {[%clk 01:31:28]} {[%emt 00:06:33]} Bb7 {[%clk 01:30:26]} {[%emt 00:00:39]}
11. Nxf6+ {[%clk 01:28:23]} {[%emt 00:03:34]} Nxf6 {[%clk 01:30:20]} {[%emt
00:00:37]} 12. e4 {[%clk 01:23:30]} {[%emt 00:05:23]} O-O {[%clk 01:28:20]}
{[%emt 00:02:30]} 13. Qc2 {[%clk 01:18:34]} {[%emt 00:05:26]} Nd7 {[%clk
01:25:17]} {[%emt 00:03:33]} 14. Rd1 {[%clk 01:09:57]} {[%emt 00:09:07]} h6
{[%clk 00:59:10]} {[%emt 00:26:38]} 15. Bf4 {[%clk 01:07:23]} {[%emt 00:03:03]}
Rc8 {[%clk 00:50:43]} {[%emt 00:08:58]} 16. Rac1 {[%clk 01:00:58]} {[%emt
00:06:54]} a5 {[%clk 00:43:20]} {[%emt 00:07:54]} 17. b3 {[%clk 00:51:57]}
{[%emt 00:09:31]} Qb6 {[%clk 00:40:04]} {[%emt 00:03:45]} 18. Nd2 {[%clk
00:48:33]} {[%emt 00:03:53]} Qxd4 {[%clk 00:37:22]} {[%emt 00:03:12]} 19. Nc4
{[%clk 00:44:14]} {[%emt 00:04:49]} Qa7 {[%clk 00:37:21]} {[%emt 00:00:32]} 20.
e5 {[%clk 00:35:35]} {[%emt 00:09:09]} Rfd8 {[%clk 00:35:22]} {[%emt 00:02:28]}
21. Qe2 {[%clk 00:35:17]} {[%emt 00:00:48]} Ba6 {[%clk 00:28:05]} {[%emt
00:07:48]} 22. Qg4 {[%clk 00:31:56]} {[%emt 00:03:50]} Bxc4 {[%clk 00:27:37]}
{[%emt 00:00:59]} 23. Rxc4 {[%clk 00:27:23]} {[%emt 00:05:02]} Kf8 {[%clk
00:25:07]} {[%emt 00:02:59]} 24. Bh7 {[%clk 00:22:02]} {[%emt 00:05:51]} Nb6
{[%clk 00:23:27]} {[%emt 00:02:12]} 25. Rcc1 {[%clk 00:18:25]} {[%emt
00:04:06]} Rxd1+ {[%clk 00:22:18]} {[%emt 00:01:39]} 26. Rxd1 {[%clk 00:18:54]}
{[%emt 00:00:01]} Rd8 {[%clk 00:22:42]} {[%emt 00:00:07]} 27. Rxd8+ {[%clk
00:18:34]} {[%emt 00:00:49]} Bxd8 {[%clk 00:23:11]} {[%emt 00:00:02]} 28. Bxh6
{[%clk 00:18:54]} {[%emt 00:00:09]} Ke8 {[%clk 00:18:56]} {[%emt 00:04:44]} 29.
Qxg7 {[%clk 00:18:08]} {[%emt 00:01:16]} Be7 {[%clk 00:17:37]} {[%emt
00:01:51]} 30. Qg8+ {[%clk 00:15:37]} {[%emt 00:03:00]} Kd7 {[%clk 00:16:59]}
{[%emt 00:01:08]} 31. Qxf7 {[%clk 00:16:01]} {[%emt 00:00:06]} Nd5 {[%clk
00:17:24]} {[%emt 00:00:06]} 32. h4 {[%clk 00:13:51]} {[%emt 00:02:39]} Qd4
{[%clk 00:17:21]} {[%emt 00:00:34]} 33. Bg5 {[%clk 00:13:23]} {[%emt 00:00:57]}
Qxe5 {[%clk 00:14:44]} {[%emt 00:03:07]} 34. g3 {[%emt 00:08:36]} Qa1+ {[%clk
00:10:50]} 35. Kg2 {[%clk 00:09:12]} {[%emt 00:00:58]} Qxa2 {[%clk 00:11:16]}
{[%emt 00:00:05]} 36. Bg6 {[%clk 00:09:09]} {[%emt 00:00:33]} Qe2 {[%clk
00:08:46]} {[%emt 00:03:00]} 37. h5 {[%clk 00:08:18]} {[%emt 00:01:21]} Kd6
{[%clk 00:04:27]} {[%emt 00:04:49]} 38. Bxe7+ {[%clk 00:08:22]} {[%emt
00:00:25]} Nxe7 {[%clk 00:04:55]} {[%emt 00:00:03]} 39. Qf8 {[%clk 00:08:04]}
{[%emt 00:00:47]} e5 {[%clk 00:04:36]} {[%emt 00:00:49]} 40. h6 {[%clk
00:07:30]} {[%emt 00:01:04]} e4 {[%clk 00:04:29]} {[%emt 00:00:38]} 41. Qf4+
{[%clk 00:07:16]} {[%emt 00:00:43]} 1-0

[Event "FIDE Grand Swiss 2023"]
[Site "Villa Marina, Douglas, Isle of Man, Isle Of Man"]
[Date "2023.10.26"]
[Round "2.39"]
[White "Samunenkov, Ihor"]
[Black "Sindarov, Javokhir"]
[Result "0-1"]
[TimeControl "40/90 + 30 + 30s/move"]
[WhiteFideId "14187086"]
[BlackFideId "14205483"]
[WhiteElo "2531"]
[BlackElo "2658"]

1. d4 {[%clk 01:40:56]} {[%emt 00:00:04]} Nf6 {[%clk 01:40:54]} {[%emt
00:00:07]} 2. Nf3 {[%clk 01:41:17]} {[%emt 00:00:08]} g6 {[%clk 01:40:55]}
{[%emt 00:00:28]} 3. g3 {[%clk 01:41:31]} {[%emt 00:00:17]} Bg7 {[%clk
01:40:33]} {[%emt 00:00:52]} 4. Bg2 {[%clk 01:41:50]} {[%emt 00:00:12]} O-O
{[%clk 01:40:46]} {[%emt 00:00:15]} 5. O-O {[%clk 01:42:06]} {[%emt 00:00:15]}
d6 {[%clk 01:34:53]} {[%emt 00:06:23]} 6. Re1 {[%clk 01:42:23]} {[%emt
00:00:13]} Nbd7 {[%clk 01:30:03]} {[%emt 00:05:21]} 7. e4 {[%clk 01:41:36]}
{[%emt 00:01:16]} e5 {[%clk 01:30:21]} {[%emt 00:00:12]} 8. a4 {[%clk
01:41:25]} {[%emt 00:00:41]} c6 {[%clk 01:27:35]} {[%emt 00:03:16]} 9. Nc3
{[%clk 01:28:17]} {[%emt 00:13:38]} Qc7 {[%clk 01:25:24]} {[%emt 00:02:39]} 10.
a5 {[%clk 01:20:53]} {[%emt 00:07:56]} Rb8 {[%clk 01:18:47]} {[%emt 00:07:08]}
11. d5 {[%clk 01:00:01]} {[%emt 00:21:21]} cxd5 {[%clk 01:16:04]} {[%emt
00:03:13]} 12. exd5 {[%clk 00:59:35]} {[%emt 00:00:56]} a6 {[%clk 01:16:25]}
{[%emt 00:00:10]} 13. Nd2 {[%clk 00:59:15]} {[%emt 00:00:49]} b5 {[%clk
01:13:49]} {[%emt 00:03:04]} 14. axb6 {[%clk 00:55:46]} {[%emt 00:04:01]} Nxb6
{[%clk 01:14:07]} {[%emt 00:00:13]} 15. Nb3 {[%clk 00:49:10]} {[%emt 00:07:04]}
Nc4 {[%clk 01:14:08]} {[%emt 00:00:29]} 16. Ra2 {[%clk 00:38:45]} {[%emt
00:10:56]} Rb4 {[%clk 01:05:56]} {[%emt 00:08:40]} 17. Bd2 {[%clk 00:35:53]}
{[%emt 00:03:25]} Qb6 {[%clk 00:33:18]} {[%emt 00:33:08]} 18. Nb1 {[%clk
00:16:22]} {[%emt 00:20:01]} Nxd2 {[%clk 00:32:43]} {[%emt 00:01:05]} 19. N1xd2
{[%clk 00:16:07]} {[%emt 00:00:45]} Bh6 {[%clk 00:31:44]} {[%emt 00:01:28]} 20.
Qe2 {[%clk 00:12:27]} {[%emt 00:04:10]} e4 {[%clk 00:25:13]} {[%emt 00:07:01]}
21. Nc4 {[%clk 00:09:32]} {[%emt 00:03:26]} Qc7 {[%clk 00:25:34]} {[%emt
00:00:09]} 22. Nba5 {[%clk 00:09:48]} {[%emt 00:00:14]} Rb5 {[%clk 00:25:10]}
{[%emt 00:00:54]} 23. h3 {[%clk 00:05:26]} {[%emt 00:04:51]} Re8 {[%clk
00:24:52]} {[%emt 00:00:48]} 24. Nb3 {[%clk 00:03:11]} {[%emt 00:02:45]} Nxd5
{[%clk 00:23:56]} {[%emt 00:01:26]} 25. Rd1 {[%clk 00:03:23]} {[%emt 00:00:18]}
Bb7 {[%clk 00:18:03]} {[%emt 00:06:23]} 26. Nca5 {[%clk 00:02:37]} {[%emt
00:01:16]} Nb4 {[%clk 00:17:12]} {[%emt 00:01:21]} 27. Nxb7 {[%clk 00:02:13]}
{[%emt 00:00:54]} Rxb7 {[%clk 00:17:36]} {[%emt 00:00:07]} 28. Ra4 {[%clk
00:02:36]} {[%emt 00:00:07]} Qc6 {[%clk 00:14:09]} {[%emt 00:03:56]} 29. Na5
{[%clk 00:01:49]} {[%emt 00:01:17]} Qxa4 {[%clk 00:14:34]} {[%emt 00:00:06]} 30.
Nxb7 {[%clk 00:02:14]} {[%emt 00:00:05]} d5 {[%clk 00:12:47]} {[%emt 00:02:17]}
31. c4 {[%clk 00:00:37]} {[%emt 00:02:06]} Qc6 {[%clk 00:12:10]} {[%emt
00:01:06]} 32. Na5 {[%clk 00:01:00]} {[%emt 00:00:08]} Qc7 {[%clk 00:12:31]}
{[%emt 00:00:09]} 33. Ra1 {[%clk 00:01:03]} {[%emt 00:00:27]} e3 {[%clk
00:11:20]} {[%emt 00:01:41]} 34. f4 {[%clk 00:01:04]} {[%emt 00:00:29]} d4
{[%clk 00:11:46]} {[%emt 00:00:04]} 0-1